lending/lending_fUSD_20240411
["ID","MTS","AMOUNT","RATE_DAILY","PERIOD"]
[322166525,1712861432680,-621.07,0.00029645,2]
[322166526,1712861432690,-150.0,0.00029647,2]
[322166527,1712861432699,-621.07,0.00029653,2]
[322166528,1712861432708,-150.0,0.00029674,2]
[322166529,1712861432717,-1000.0,0.000297,2]
[322166530,1712861432727,-1000.0,0.000297,2]
[322166531,1712861432736,-1500.0,0.00029702,2]
[322166532,1712861432745,-150.0,0.00029713,2]
[322166533,1712861432755,-150.0,0.00029741,2]
[322166534,1712861432765,-150.0,0.00029782,2]
[322166535,1712861432775,-1000.0,0.000298,2]
[322166536,1712861432784,-155.22,0.0002982,2]
[322166537,1712861432793,-1500.0,0.00029839,2]
[322166538,1712861432807,-150.0,0.00029842,2]
[322166539,1712861432816,-150.0,0.00029898,2]
[322166540,1712861432826,-1705.3199,0.000299,2]
[322166541,1712861432836,-150.0,0.000299,2]
[322166542,1712861432846,-150.0,0.00029903,2]
[322166543,1712861432855,-150.0,0.00029918,2]
[322166544,1712861432864,-150.0,0.0002992,2]
[322166545,1712861432878,-150.42,0.00029924,10]
[322166546,1712861432887,-191.53,0.00029924,10]
[322166547,1712861432896,-1490.0,0.00029925,2]
[322166548,1712861432906,-150.0,0.00029933,2]
[322166549,1712861432916,-4864.917,0.00029934,2]
[322166550,1712861432926,-1000.0,0.00029934,2]
[322166551,1712861432935,-3603.9511,0.00029934,2]
[322166552,1712861432944,-2500.0,0.00029934,2]
[322166553,1712861432956,-2553.80538822,0.00029935,2]
[322166554,1712861432966,-150.0,0.00029935,2]
[322166555,1712861432975,-19566.28865471,0.00029935,2]
[322166556,1712861432985,-7500.0,0.00029935,2]
[322166557,1712861432994,-150.0,0.00029936,2]
[322166558,1712861433004,-318.41071196,0.00029936,2]
[322166559,1712861433014,-150.0,0.00029984,2]
[322166560,1712861433022,-2219.0,0.0003,3]
[322166561,1712861433033,-150.0,0.00030019,2]
[322166562,1712861433042,-150.0,0.00030022,2]
[322166563,1712861433054,-626.66603795,0.00030033,4]
[322166564,1712861433064,-218640.97291665,0.00030034,3]
[322166565,1712861433073,-2180.90381059,0.00030035,2]
[322166566,1712861433083,-102392.67888106,0.00030035,2]
[322166567,1712861433101,-858.85640371,0.00030035,2]
[322166568,1712861433112,-844.00971584,0.00030035,2]
[322166569,1712861433128,-858.16390953,0.00030035,2]
[322166570,1712861433149,-490.35265103,0.00030035,2]
[322166585,1712861438199,-150.0,0.00028545,2]
[322166588,1712861438208,-150.0,0.00028641,2]
[322166589,1712861438217,-150.0,0.00028642,2]
[322166591,1712861438226,-44.72760592,0.00028925,2]
[322166595,1712861438245,-155.27239408,0.00028925,2]
[322166597,1712861438259,-150.0,0.00028954,2]
[322166599,1712861438269,-150.0,0.00029063,2]
[322166600,1712861438278,-93.21316604,0.00029155,2]
[322166601,1712861438889,-56.78683396,0.00029155,2]
[322166602,1712861438899,-150.0,0.0002969,2]
[322166603,1712861438908,-1252.88697183,0.00030035,2]
[322166604,1712861438921,-3577.80730142,0.00030035,2]
[322166605,1712861438933,-421.399227,0.00030035,2]
[322166606,1712861438945,-6706.26893858,0.00030035,2]
[322166607,1712861438955,-1000.0,0.00030036,2]
[322166608,1712861438966,-6779.99556781,0.00030036,2]
[322166609,1712861438975,-168.91956794,0.00030036,2]
[322166610,1712861438985,-176.4903007,0.00030036,2]
[322166611,1712861438994,-179.60290379,0.00030036,2]
[322166612,1712861439003,-207.94633197,0.00030036,2]
[322166613,1712861439013,-4710.74006469,0.00030036,2]
[322166614,1712861439022,-155.31429585,0.00030036,2]
[322166615,1712861439031,-150.0,0.00030048,2]
[322166616,1712861439042,-318.41071184,0.000301,2]
[322166617,1712861439053,-150.0,0.00030106,2]
[322166618,1712861439062,-1132.64805,0.0003011,2]
[322166619,1712861439072,-150.0,0.00030122,2]
[322166620,1712861439081,-300.0,0.00030132,2]
[322166621,1712861439091,-259.25084898,0.00030132,2]
[322166622,1712861439100,-633.49451801,0.00030134,4]
[322166623,1712861439110,-3862.26830008,0.00030134,2]
[322166624,1712861439119,-2354.77756212,0.00030134,4]
[322166625,1712861439129,-364.49297746,0.00030134,4]
[322166626,1712861439138,-196.41457958,0.00030134,2]
[322166627,1712861439147,-20168.76501266,0.00030134,2]
[322166628,1712861439159,-155.0,0.00030134,2]
[322166629,1712861439169,-155.0,0.00030134,4]
[322166630,1712861439179,-15631.98085851,0.00030134,4]
[322166631,1712861439188,-156.29477005,0.00030134,4]
[322166632,1712861439198,-342.8148006,0.00030134,4]
[322166633,1712861439207,-265.41538966,0.00030134,4]
[322166634,1712861439216,-160.1828942,0.00030134,4]
[322166635,1712861439225,-166.16697027,0.00030134,4]
[322166636,1712861439235,-1012.34270929,0.00030134,7]
[322166637,1712861439245,-4328.81850846,0.00030135,4]
[322166638,1712861439254,-3897.96647988,0.00030135,4]
[322166639,1712861439264,-500.0,0.00030136,2]
[322166640,1712861439274,-500.0,0.00030136,2]
[322166641,1712861439287,-500.0,0.00030136,2]
[322166642,1712861439297,-240.04331075,0.00030136,2]
[322166643,1712861439308,-500.0,0.00030136,2]
[322166644,1712861439318,-508.38316532,0.00030136,2]
[322166645,1712861439328,-297.0101391,0.00030136,2]
[322166646,1712861439338,-458.50586499,0.00030136,2]
[322166647,1712861439348,-545.9941456,0.00030136,2]
[322166648,1712861439358,-500.0,0.00030136,2]
[322166649,1712861439368,-500.0,0.00030136,2]
[322166650,1712861439378,-500.0,0.00030136,2]
[322166651,1712861439387,-500.0,0.00030136,2]
[322166652,1712861439397,-532.26,0.00030136,2]
[322166653,1712861439407,-500.0,0.00030136,2]
[322166654,1712861439416,-500.0,0.00030136,2]
[322166655,1712861439425,-500.0,0.00030136,2]
[322166656,1712861439435,-500.0,0.00030136,2]
[322166657,1712861439445,-500.0,0.00030136,2]
[322166658,1712861439455,-500.0,0.00030136,2]
[322166659,1712861439464,-500.0,0.00030136,2]
[322166660,1712861439474,-567.04,0.00030136,2]
[322166661,1712861439483,-500.0,0.00030136,2]
[322166662,1712861439493,-500.0,0.00030136,2]
[322166663,1712861439505,-500.0,0.00030136,2]
[322166664,1712861439515,-500.0,0.00030136,2]
[322166665,1712861439526,-500.0,0.00030136,2]
[322166666,1712861439538,-500.0,0.00030136,2]
[322166667,1712861439550,-500.0,0.00030136,2]
[322166668,1712861439562,-500.0,0.00030136,2]
[322166670,1712861439572,-500.0,0.00030136,2]
[322166672,1712861439581,-500.0,0.00030136,2]
[322166674,1712861439590,-1013.35,0.00030136,2]
[322166675,1712861439600,-822.05,0.00030136,2]
[322166676,1712861439610,-500.0,0.00030136,2]
[322166677,1712861439621,-500.0,0.00030136,2]
[322166678,1712861439631,-500.0,0.00030136,2]
[322166679,1712861439641,-500.0,0.00030136,2]
[322166680,1712861439651,-500.0,0.00030136,2]
[322166681,1712861439662,-500.0,0.00030136,2]
[322166682,1712861439672,-500.0,0.00030136,2]
[322166683,1712861439682,-287.22414775,0.00030136,2]
[322166684,1712861439692,-500.0,0.00030136,2]
[322166685,1712861439702,-500.0,0.00030136,2]
[322166686,1712861439712,-500.0,0.00030136,2]
[322166687,1712861439727,-599.77727837,0.00030136,2]
[322166688,1712861439738,-568.88241465,0.00030136,2]
[322166689,1712861439748,-500.0,0.00030136,2]
[322166690,1712861439758,-500.0,0.00030136,2]
[322166691,1712861439769,-500.0,0.00030136,2]
[322166692,1712861439778,-244.73438884,0.00030136,2]
[322166693,1712861439789,-500.0,0.00030136,2]
[322166694,1712861439801,-500.0,0.00030136,2]
[322166695,1712861439812,-500.0,0.00030136,2]
[322166696,1712861439823,-500.0,0.00030136,2]
[322166697,1712861439833,-500.0,0.00030136,2]
[322166698,1712861439844,-500.0,0.00030136,2]
[322166699,1712861439856,-500.0,0.00030136,2]
[322166700,1712861439869,-158.40536406,0.00030136,2]
[322166701,1712861439883,-578.46,0.00030136,2]
[322166702,1712861439893,-500.0,0.00030136,2]
[322166703,1712861439903,-500.0,0.00030136,2]
[322166704,1712861439914,-500.0,0.00030136,2]
[322166705,1712861439925,-1071.31,0.00030136,2]
[322166706,1712861439936,-500.0,0.00030136,2]
[322166707,1712861439946,-500.0,0.00030136,2]
[322166708,1712861439957,-500.0,0.00030136,2]
[322166709,1712861439967,-500.0,0.00030136,2]
[322166710,1712861439978,-500.0,0.00030136,2]
[322166711,1712861439988,-500.0,0.00030136,2]
[322166712,1712861440001,-500.0,0.00030136,2]
[322166713,1712861440011,-1038.66,0.00030136,2]
[322166714,1712861440021,-500.0,0.00030136,2]
[322166715,1712861440030,-1087.02,0.00030136,2]
[322166716,1712861440041,-500.0,0.00030136,2]
[322166717,1712861440051,-500.0,0.00030136,2]
[322166718,1712861440061,-500.0,0.00030136,2]
[322166719,1712861440071,-500.0,0.00030136,2]
[322166722,1712861440081,-500.0,0.00030136,2]
[322166723,1712861440091,-500.0,0.00030136,2]
[322166725,1712861440100,-500.0,0.00030136,2]
[322166728,1712861440111,-500.0,0.00030136,2]
[322166730,1712861440121,-500.0,0.00030136,2]
[322166731,1712861440130,-500.0,0.00030136,2]
[322166734,1712861440141,-500.0,0.00030136,2]
[322166736,1712861440151,-500.0,0.00030136,2]
[322166738,1712861440161,-500.0,0.00030136,2]
[322166740,1712861440171,-500.0,0.00030136,2]
[322166742,1712861440180,-500.0,0.00030136,2]
[322166744,1712861440190,-500.0,0.00030136,2]
[322166746,1712861440200,-500.0,0.00030136,2]
[322166748,1712861440211,-500.0,0.00030136,2]
[322166750,1712861440220,-500.0,0.00030136,2]
[322166752,1712861440230,-500.0,0.00030136,2]
[322166754,1712861440239,-500.0,0.00030136,2]
[322166756,1712861440249,-614.23025427,0.00030136,2]
[322166758,1712861440259,-612.92,0.00030136,2]
[322166760,1712861440270,-500.0,0.00030136,2]
[322166762,1712861440280,-500.0,0.00030136,2]
[322166764,1712861440289,-500.0,0.00030136,2]
[322166766,1712861440298,-827.57,0.00030136,2]
[322166768,1712861440308,-500.0,0.00030136,2]
[322166770,1712861440318,-500.0,0.00030136,2]
[322166772,1712861440327,-885.29,0.00030136,2]
[322166775,1712861440339,-500.0,0.00030136,2]
[322166777,1712861440348,-531.44,0.00030136,2]
[322166779,1712861440357,-763.17,0.00030136,2]
[322166781,1712861440367,-500.0,0.00030136,2]
[322166783,1712861440377,-500.0,0.00030136,2]
[322166785,1712861440387,-500.0,0.00030136,2]
[322166787,1712861440396,-500.0,0.00030136,2]
[322166789,1712861440407,-500.0,0.00030136,2]
[322166791,1712861440416,-500.0,0.00030136,2]
[322166793,1712861440426,-500.0,0.00030136,2]
[322166795,1712861440435,-500.0,0.00030136,2]
[322166797,1712861440446,-500.0,0.00030136,2]
[322166799,1712861440456,-500.0,0.00030136,2]
[322166801,1712861440465,-500.0,0.00030136,2]
[322166803,1712861440474,-887.38,0.00030136,2]
[322166804,1712861440484,-500.0,0.00030136,2]
[322166805,1712861440493,-500.0,0.00030136,2]
[322166806,1712861440502,-500.0,0.00030136,2]
[322166807,1712861440511,-500.0,0.00030136,2]
[322166808,1712861440521,-500.0,0.00030136,2]
[322166809,1712861440530,-500.0,0.00030136,2]
[322166810,1712861440539,-500.0,0.00030136,2]
[322166811,1712861440548,-500.0,0.00030136,2]
[322166812,1712861440558,-500.0,0.00030136,2]
[322166813,1712861440567,-588.55,0.00030136,2]
[322166815,1712861440576,-500.0,0.00030136,2]
[322166817,1712861440586,-500.0,0.00030136,2]
[322166819,1712861440595,-500.0,0.00030136,2]
[322166820,1712861440605,-500.0,0.00030136,2]
[322166822,1712861440614,-975.18,0.00030136,2]
[322166824,1712861440623,-500.0,0.00030136,2]
[322166826,1712861440633,-1012.01,0.00030136,2]
[322166828,1712861440643,-500.0,0.00030136,2]
[322166830,1712861440652,-520.03300862,0.00030136,2]
[322166831,1712861440661,-500.0,0.00030136,2]
[322166833,1712861440670,-500.0,0.00030136,2]
[322166835,1712861440680,-549.47474544,0.00030136,2]
[322166837,1712861440690,-639.20836557,0.00030136,2]
[322166839,1712861440700,-500.0,0.00030136,2]
[322166841,1712861440709,-500.0,0.00030136,2]
[322166843,1712861440718,-500.0,0.00030136,2]
[322166845,1712861440727,-500.0,0.00030136,2]
[322166847,1712861440737,-500.0,0.00030136,2]
[322166849,1712861440746,-500.0,0.00030136,2]
[322166851,1712861440756,-500.0,0.00030136,2]
[322166853,1712861440765,-500.0,0.00030136,2]
[322166854,1712861440774,-500.0,0.00030136,2]
[322166855,1712861440785,-500.0,0.00030136,2]
[322166856,1712861440795,-500.0,0.00030136,2]
[322166857,1712861440814,-732.95,0.00030136,2]
[322166858,1712861440825,-1427.17,0.00030136,2]
[322166859,1712861440835,-543.21,0.00030136,2]
[322166860,1712861440844,-500.0,0.00030136,2]
[322166861,1712861440853,-601.05,0.00030136,2]
[322166862,1712861440863,-500.0,0.00030136,2]
[322166863,1712861440874,-591.61155253,0.00030136,2]
[322166864,1712861440884,-500.0,0.00030136,2]
[322166865,1712861440894,-500.0,0.00030136,2]
[322166866,1712861440905,-1108.74,0.00030136,2]
[322166867,1712861440915,-539.53,0.00030136,2]
[322166868,1712861440925,-500.0,0.00030136,2]
[322166869,1712861440935,-500.0,0.00030136,2]
[322166870,1712861440945,-500.0,0.00030136,2]
[322166871,1712861440956,-500.0,0.00030136,2]
[322166872,1712861440967,-500.0,0.00030136,2]
[322166873,1712861440978,-500.0,0.00030136,2]
[322166874,1712861440989,-737.44,0.00030136,2]
[322166875,1712861440999,-613.679858,0.00030136,2]
[322166876,1712861441010,-610.16,0.00030136,2]
[322166877,1712861441021,-500.0,0.00030136,2]
[322166878,1712861441032,-500.0,0.00030136,2]
[322166879,1712861441043,-500.0,0.00030136,2]
[322166880,1712861441053,-500.0,0.00030136,2]
[322166881,1712861441065,-581.34,0.00030136,2]
[322166882,1712861441076,-500.0,0.00030136,2]
[322166883,1712861441085,-687.19,0.00030136,2]
[322166884,1712861441096,-500.0,0.00030136,2]
[322166885,1712861441107,-1136.74,0.00030136,2]
[322166886,1712861441117,-416.40508442,0.00030136,2]
[322166887,1712861441128,-500.0,0.00030136,2]
[322166888,1712861441138,-500.0,0.00030136,2]
[322166889,1712861441148,-678.6,0.00030136,2]
[322166890,1712861441159,-507.88,0.00030136,2]
[322166891,1712861441169,-500.0,0.00030136,2]
[322166892,1712861441180,-1280.41,0.00030136,2]
[322166893,1712861441190,-729.53,0.00030136,2]
[322166894,1712861441201,-500.0,0.00030136,2]
[322166895,1712861441211,-520.77591657,0.00030136,2]
[322166896,1712861441222,-640.29750448,0.00030136,2]
[322166897,1712861441234,-920.69,0.00030136,2]
[322166898,1712861441245,-500.0,0.00030136,2]
[322166899,1712861441258,-340.8259865,0.00030136,2]
[322166900,1712861441269,-1496.82,0.00030136,2]
[322166901,1712861441282,-714.33,0.00030136,2]
[322166902,1712861441293,-808.89,0.00030136,2]
[322166903,1712861441303,-500.0,0.00030136,2]
[322166904,1712861441315,-694.05,0.00030136,2]
[322166905,1712861441329,-551.13,0.00030136,2]
[322166906,1712861441341,-588.64,0.00030136,2]
[322166907,1712861441353,-500.0,0.00030136,2]
[322166908,1712861441364,-1042.14,0.00030136,2]
[322166909,1712861441375,-500.0,0.00030136,2]
[322166910,1712861441387,-1090.98,0.00030136,2]
[322166911,1712861441399,-500.0,0.00030136,2]
[322166912,1712861441411,-1282.71,0.00030136,2]
[322166913,1712861441424,-500.0,0.00030136,2]
[322166914,1712861441435,-500.0,0.00030136,2]
[322166915,1712861441447,-500.0,0.00030136,2]
[322166916,1712861441458,-1873.64,0.00030136,2]
[322166917,1712861441469,-898.42,0.00030136,2]
[322166918,1712861441481,-1396.05,0.00030136,2]
[322166919,1712861441492,-500.0,0.00030136,2]
[322166920,1712861441503,-500.0,0.00030136,2]
[322166921,1712861441513,-500.0,0.00030136,2]
[322166922,1712861441523,-1663.78,0.00030136,2]
[322166923,1712861441533,-907.19,0.00030136,2]
[322166924,1712861441543,-500.0,0.00030136,2]
[322166925,1712861441556,-644.41312337,0.00030136,2]
[322166926,1712861441566,-500.0,0.00030136,2]
[322166927,1712861441576,-500.0,0.00030136,2]
[322166928,1712861441587,-653.36,0.00030136,2]
[322166929,1712861441598,-1245.7,0.00030136,2]
[322166930,1712861441609,-500.0,0.00030136,2]
[322166931,1712861441619,-500.0,0.00030136,2]
[322166932,1712861441630,-500.0,0.00030136,2]
[322166933,1712861441640,-721.02,0.00030136,2]
[322166934,1712861441650,-500.0,0.00030136,2]
[322166935,1712861441661,-1535.92,0.00030136,2]
[322166936,1712861441671,-1380.53,0.00030136,2]
[322166937,1712861441681,-666.9,0.00030136,2]
[322166938,1712861441691,-900.81,0.00030136,2]
[322166939,1712861441702,-500.0,0.00030136,2]
[322166940,1712861441713,-500.0,0.00030136,2]
[322166941,1712861441723,-500.0,0.00030136,2]
[322166942,1712861441733,-500.0,0.00030136,2]
[322166943,1712861441744,-500.0,0.00030136,2]
[322166944,1712861441754,-500.0,0.00030136,2]
[322166945,1712861441764,-500.0,0.00030136,2]
[322166946,1712861441773,-500.0,0.00030136,2]
[322166947,1712861441783,-500.0,0.00030136,2]
[322166948,1712861441794,-775.97,0.00030136,2]
[322166949,1712861441805,-920.61,0.00030136,2]
[322166950,1712861441816,-1243.83,0.00030136,2]
[322166951,1712861441827,-619.6,0.00030136,2]
[322166952,1712861441837,-500.0,0.00030136,2]
[322166953,1712861441850,-500.0,0.00030136,2]
[322166954,1712861441861,-500.0,0.00030136,2]
[322166955,1712861441873,-500.0,0.00030136,2]
[322166956,1712861441885,-500.0,0.00030136,2]
[322166957,1712861441895,-500.0,0.00030136,2]
[322166958,1712861441906,-500.0,0.00030136,2]
[322166959,1712861441918,-500.0,0.00030136,2]
[322166960,1712861441928,-500.0,0.00030136,2]
[322166961,1712861441939,-500.0,0.00030136,2]
[322166962,1712861441950,-1677.6,0.00030136,2]
[322166963,1712861441961,-1121.03,0.00030136,2]
[322166964,1712861441972,-833.92,0.00030136,2]
[322166965,1712861441982,-1524.98,0.00030136,2]
[322166966,1712861441992,-500.0,0.00030136,2]
[322166967,1712861442003,-500.0,0.00030136,2]
[322166968,1712861442013,-500.0,0.00030136,2]
[322166969,1712861442024,-1149.91,0.00030136,2]
[322166970,1712861442034,-1727.36,0.00030136,2]
[322166971,1712861442044,-1029.14,0.00030136,2]
[322166972,1712861442054,-1901.91,0.00030136,2]
[322166973,1712861442064,-500.0,0.00030136,2]
[322166974,1712861442075,-662.9,0.00030136,2]
[322166975,1712861442085,-513.98,0.00030136,2]
[322166976,1712861442095,-532.78,0.00030136,2]
[322166977,1712861442106,-626.21,0.00030136,2]
[322166978,1712861442116,-1942.23,0.00030136,2]
[322166979,1712861442126,-500.0,0.00030136,2]
[322166980,1712861442136,-1695.54,0.00030136,2]
[322166981,1712861442146,-500.0,0.00030136,2]
[322166982,1712861442157,-500.0,0.00030136,2]
[322166983,1712861442167,-368.2636965,0.00030136,2]
[322166984,1712861442178,-504.78,0.00030136,2]
[322166985,1712861442188,-569.06452742,0.00030136,2]
[322166986,1712861442198,-787.05,0.00030136,2]
[322166987,1712861442208,-1116.11,0.00030136,2]
[322166988,1712861442218,-864.98,0.00030136,2]
[322166989,1712861442228,-500.0,0.00030136,2]
[322166990,1712861442238,-574.25,0.00030136,2]
[322166991,1712861442248,-641.98,0.00030136,2]
[322166992,1712861442259,-1609.48,0.00030136,2]
[322166993,1712861442269,-500.0,0.00030136,2]
[322166994,1712861442279,-966.02,0.00030136,2]
[322166995,1712861442289,-500.0,0.00030136,2]
[322166996,1712861442300,-500.0,0.00030136,2]
[322166997,1712861442314,-952.07,0.00030136,2]
[322166998,1712861442325,-500.0,0.00030136,2]
[322166999,1712861442334,-500.0,0.00030136,2]
[322167000,1712861442345,-500.0,0.00030136,2]
[322167001,1712861442355,-1074.59,0.00030136,2]
[322167002,1712861442365,-500.0,0.00030136,2]
[322167003,1712861442375,-500.0,0.00030136,2]
[322167004,1712861442385,-823.75,0.00030136,2]
[322167005,1712861442396,-500.0,0.00030136,2]
[322167006,1712861442407,-1901.64,0.00030136,2]
[322167007,1712861442417,-791.64,0.00030136,2]
[322167008,1712861442427,-500.0,0.00030136,2]
[322167010,1712861442437,-500.0,0.00030136,2]
[322167012,1712861442446,-731.83,0.00030136,2]
[322167014,1712861442456,-500.0,0.00030136,2]
[322167016,1712861442466,-2370.52,0.00030136,2]
[322167018,1712861442476,-500.0,0.00030136,2]
[322167019,1712861442486,-500.0,0.00030136,2]
[322167020,1712861442496,-807.45,0.00030136,2]
[322167021,1712861442505,-500.0,0.00030136,2]
[322167022,1712861442515,-500.0,0.00030136,2]
[322167023,1712861442525,-500.0,0.00030136,2]
[322167024,1712861442535,-500.0,0.00030136,2]
[322167026,1712861442545,-500.0,0.00030136,2]
[322167027,1712861442557,-500.0,0.00030136,2]
[322167028,1712861442567,-672.96,0.00030136,2]
[322167029,1712861442578,-516.58,0.00030136,2]
[322167030,1712861442588,-1179.5,0.00030136,2]
[322167031,1712861442598,-593.73,0.00030136,2]
[322167032,1712861442608,-500.0,0.00030136,2]
[322167033,1712861442618,-1250.08,0.00030136,2]
[322167034,1712861442628,-1505.46,0.00030136,2]
[322167035,1712861442638,-545.93239807,0.00030136,2]
[322167036,1712861442648,-608.5,0.00030136,2]
[322167038,1712861442657,-500.0,0.00030136,2]
[322167039,1712861442667,-1355.08,0.00030136,2]
[322167040,1712861442677,-500.0,0.00030136,2]
[322167041,1712861442686,-500.0,0.00030136,2]
[322167042,1712861442696,-500.0,0.00030136,2]
[322167043,1712861442705,-500.0,0.00030136,2]
[322167044,1712861442715,-500.0,0.00030136,2]
[322167045,1712861442724,-1226.58,0.00030136,2]
[322167046,1712861442734,-946.19,0.00030136,2]
[322167047,1712861442745,-500.0,0.00030136,2]
[322167048,1712861442754,-1127.54,0.00030136,2]
[322167049,1712861442764,-1198.85,0.00030136,2]
[322167050,1712861442773,-1757.51,0.00030136,2]
[322167051,1712861442783,-500.0,0.00030136,2]
[322167052,1712861442793,-617.47,0.00030136,2]
[322167053,1712861442802,-500.0,0.00030136,2]
[322167054,1712861442814,-1139.83,0.00030136,2]
[322167055,1712861442823,-599.0827748,0.00030136,2]
[322167056,1712861442833,-834.45,0.00030136,2]
[322167057,1712861442843,-1519.57,0.00030136,2]
[322167058,1712861442853,-2362.49,0.00030136,2]
[322167059,1712861442863,-954.32,0.00030136,2]
[322167060,1712861442875,-500.0,0.00030136,2]
[322167061,1712861442885,-500.0,0.00030136,2]
[322167062,1712861442894,-500.0,0.00030136,2]
[322167063,1712861442904,-2368.11,0.00030136,2]
[322167064,1712861442914,-500.0,0.00030136,2]
[322167065,1712861442924,-500.0,0.00030136,2]
[322167066,1712861442934,-1308.58,0.00030136,2]
[322167067,1712861442945,-912.92,0.00030136,2]
[322167068,1712861442956,-730.91,0.00030136,2]
[322167069,1712861442966,-500.0,0.00030136,2]
[322167070,1712861442975,-551.35,0.00030136,2]
[322167071,1712861442985,-655.01,0.00030136,2]
[322167072,1712861442994,-500.0,0.00030136,2]
[322167073,1712861443005,-1549.91,0.00030136,2]
[322167074,1712861443015,-500.0,0.00030136,2]
[322167075,1712861443024,-500.0,0.00030136,2]
[322167076,1712861443034,-1675.29,0.00030136,2]
[322167077,1712861443044,-1543.2,0.00030136,2]
[322167078,1712861443053,-500.0,0.00030136,2]
[322167079,1712861443067,-539.06,0.00030136,2]
[322167080,1712861443077,-500.0,0.00030136,2]
[322167081,1712861443087,-500.0,0.00030136,2]
[322167082,1712861443097,-500.0,0.00030136,2]
[322167083,1712861443107,-553.13,0.00030136,2]
[322167084,1712861443117,-1071.3,0.00030136,2]
[322167085,1712861443126,-500.0,0.00030136,2]
[322167086,1712861443136,-500.0,0.00030136,2]
[322167087,1712861443146,-500.0,0.00030136,2]
[322167088,1712861443156,-861.12,0.00030136,2]
[322167089,1712861443166,-1210.82,0.00030136,2]
[322167090,1712861443176,-867.15,0.00030136,2]
[322167091,1712861443186,-500.0,0.00030136,2]
[322167092,1712861443195,-500.0,0.00030136,2]
[322167093,1712861443205,-500.0,0.00030136,2]
[322167094,1712861443215,-500.0,0.00030136,2]
[322167095,1712861443225,-1597.91,0.00030136,2]
[322167096,1712861443237,-500.0,0.00030136,2]
[322167097,1712861443247,-568.92,0.00030136,2]
[322167098,1712861443257,-1840.7,0.00030136,2]
[322167099,1712861443268,-500.0,0.00030136,2]
[322167102,1712861443574,-710.97,0.00030136,2]
[322167103,1712861443593,-232.0907181,0.00030136,2]
[322167104,1712861443603,-520.95,0.00030136,2]
[322167105,1712861443612,-664.12,0.00030136,2]
[322167106,1712861443621,-665.9,0.00030136,2]
[322167107,1712861443631,-500.0,0.00030136,2]
[322167108,1712861443640,-515.99,0.00030136,2]
[322167109,1712861443650,-500.0,0.00030136,2]
[322167110,1712861443660,-1400.49,0.00030136,2]
[322167111,1712861443670,-500.0,0.00030136,2]
[322167112,1712861443679,-1525.01,0.00030136,2]
[322167113,1712861443689,-1621.65,0.00030136,2]
[322167114,1712861443699,-500.0,0.00030136,2]
[322167115,1712861443709,-971.08,0.00030136,2]
[322167116,1712861443719,-515.56,0.00030136,2]
[322167117,1712861443728,-500.0,0.00030136,2]
[322167118,1712861443738,-511.71,0.00030136,2]
[322167119,1712861443747,-500.0,0.00030136,2]
[322167120,1712861443757,-509.33,0.00030136,2]